bitfinex/quotes_BTCUSD_20251202
["timestamp","ask_amount","ask_price","bid_price","bid_amount"]
[1764711188532,0.19501,91505.0,91503.0,0.21857102]
[1764711189173,0.00023374,91508.0,91502.0,0.01092872]
[1764711189174,0.00023374,91508.0,91507.0,0.21856251]
[1764711189376,0.09108,91507.0,91497.0,0.01484]
[1764711189673,0.02188819,91502.0,91499.0,0.22951016]
[1764711189874,0.02188819,91502.0,91497.0,0.01092932]
[1764711190071,0.05565,91498.0,91495.0,0.22959456]
[1764711190276,0.05565,91497.0,91496.0,0.01728]
[1764711190630,0.14673,91497.0,91495.0,7.58e-05]
[1764711190878,0.2961873,91496.0,91495.0,7.58e-05]
[1764711191072,0.36531879,91496.0,91495.0,7.58e-05]
[1764711192437,0.38720698,91496.0,91495.0,7.58e-05]
[1764711198772,0.38720698,91496.0,91458.0,0.24445268]
[1764711198773,0.01093302,91466.0,91458.0,0.24445268]
[1764711198973,0.01093362,91461.0,91458.0,0.01522566]
[1764711199144,0.01093326,91464.0,91458.0,0.00038566]
[1764711199145,0.0109335,91462.0,91458.0,0.00038566]
[1764711199321,0.12173819,91459.0,91458.0,0.00038566]
[1764711199753,0.19093,91459.0,91458.0,0.00038566]
[1764711200111,0.19093,91459.0,91458.0,0.22006527]
[1764711200319,0.19093,91459.0,91458.0,0.21906527]
[1764711200680,0.21281819,91459.0,91458.0,0.22006527]
[1764711201013,0.19093,91459.0,91458.0,0.22106527]
[1764711201857,0.19093,91459.0,91458.0,0.00238566]
[1764711203295,0.21281819,91459.0,91458.0,0.00238566]
[1764711203991,0.21281819,91459.0,91458.0,0.00138566]
[1764711204215,0.21281819,91459.0,91458.0,0.00038566]
[1764711205290,0.43149541,91459.0,91458.0,0.00038566]
[1764711206736,0.43134023,91459.0,91458.0,0.00038566]
[1764711207619,0.75434023,91459.0,91458.0,0.00038566]
[1764711216700,0.43134023,91459.0,91458.0,0.00038566]
[1764711217263,0.21872026,91441.0,91440.0,0.0004]
[1764711217470,0.33941845,91441.0,91440.0,0.00051563]
[1764711217673,0.42312845,91441.0,91440.0,0.00051563]
[1764711218854,0.74612845,91441.0,91440.0,0.00051563]
[1764711222902,0.80865144,91441.0,91440.0,0.00051563]
[1764711224558,0.81065144,91441.0,91440.0,0.00051563]
[1764711226171,0.81165144,91441.0,91440.0,0.00051563]
[1764711227177,0.74912845,91441.0,91440.0,0.00051563]
[1764711240642,0.42612845,91441.0,91440.0,0.00051563]
[1764711241741,0.18552,91441.0,91440.0,0.00051563]
[1764711242165,0.003,91441.0,91440.0,0.00051563]
[1764711242570,0.002,91441.0,91440.0,0.21923828]
[1764711242780,0.002,91441.0,91440.0,0.00051563]
[1764711242990,0.36017026,91441.0,91440.0,0.00051563]
[1764711243419,0.14145,91441.0,91440.0,0.00051563]
[1764711243841,0.05574,91441.0,91440.0,0.21923828]
[1764711244124,0.04307,91446.0,91445.0,0.2187107]
[1764711244340,0.04307,91446.0,91440.0,0.00051563]
[1764711244341,0.05574,91441.0,91440.0,0.00051563]
[1764711244754,0.13945,91441.0,91440.0,0.00051563]
[1764711245105,0.13945,91441.0,91440.0,0.00251563]
[1764711245312,0.05574,91441.0,91440.0,0.22223828]
[1764711245514,0.2187107,91445.0,91442.0,0.21871699]
[1764711245718,0.21871469,91444.0,91441.0,0.22965517]
[1764711245917,0.01093553,91445.0,91441.0,0.22965517]
[1764711246117,0.24060845,91441.0,91440.0,0.00351563]
[1764711246319,0.07409819,91441.0,91440.0,0.00251563]
[1764711246538,0.37472845,91441.0,91440.0,0.00251563]
[1764711246678,0.37472845,91441.0,91440.0,0.00051563]
[1764711248084,0.37472845,91441.0,91440.0,0.00151563]
[1764711250965,0.15600819,91441.0,91440.0,0.00151563]
[1764711251186,0.15600819,91441.0,91440.0,0.22023828]
[1764711251516,0.37472845,91441.0,91440.0,0.00151563]
[1764711253105,0.36930261,91441.0,91440.0,0.00151563]
[1764711253316,0.3911908,91441.0,91440.0,0.00151563]
[1764711254393,0.3911908,91441.0,91440.0,0.00051563]
[1764711256617,0.37130261,91441.0,91440.0,0.00051563]
[1764711257031,0.36930261,91441.0,91440.0,0.00051563]
[1764711257232,0.3911908,91441.0,91440.0,0.00051563]
[1764711265188,0.36930261,91441.0,91440.0,0.00051563]
[1764711265400,0.3911908,91441.0,91440.0,0.00051563]
[1764711265606,0.3911908,91441.0,91412.0,0.01093948]
[1764711265607,0.02188819,91412.0,91410.0,0.0004]
[1764711265831,0.35291204,91411.0,91410.0,0.00049312]
[1764711266041,0.37480023,91411.0,91410.0,0.00049312]
[1764711266924,0.37480023,91411.0,91410.0,0.00249312]
[1764711267126,0.15600819,91411.0,91410.0,0.00249312]
[1764711267336,0.15600819,91411.0,91410.0,0.22228756]
[1764711267649,0.15600819,91411.0,91410.0,0.00349312]
[1764711268466,0.15600819,91411.0,91410.0,0.22228756]
[1764711268673,0.13412,91411.0,91410.0,0.22228756]
[1764711269074,0.03879,91414.0,91412.0,0.21878965]
[1764711269284,0.03879,91414.0,91413.0,0.21878726]
[1764711269489,0.091,91414.0,91413.0,0.21878726]
[1764711269786,0.17291,91414.0,91413.0,0.21878726]
[1764711269988,0.19479819,91414.0,91413.0,0.21878726]
[1764711270364,0.11288819,91414.0,91413.0,0.21878726]
[1764711270611,0.11288819,91414.0,91413.0,0.22078726]
[1764711270990,0.19479819,91414.0,91413.0,0.22178726]
[1764711271575,0.19479819,91414.0,91413.0,0.003]
[1764711271782,0.19479819,91414.0,91413.0,0.22178726]
[1764711271983,0.19479819,91414.0,91413.0,0.003]
[1764711272180,0.41358305,91414.0,91413.0,0.003]
[1764711272587,0.19479819,91414.0,91413.0,0.003]
[1764711272887,0.41358305,91414.0,91413.0,0.003]
[1764711274323,0.39169486,91414.0,91413.0,0.003]
[1764711275155,0.19479819,91414.0,91413.0,0.003]
[1764711275350,0.43553156,91414.0,91413.0,0.003]
[1764711275624,0.41358305,91414.0,91413.0,0.003]
[1764711276022,0.39169486,91414.0,91413.0,0.003]
[1764711276667,0.39169486,91414.0,91413.0,0.002]
[1764711277180,0.41358305,91414.0,91413.0,0.002]
[1764711277382,0.87451906,91414.0,91413.0,0.002]
[1764711277586,1.02121785,91414.0,91413.0,0.002]
[1764711277831,0.62620322,91411.0,91410.0,0.00049312]
[1764711278027,0.69228557,91411.0,91410.0,0.00049312]
[1764711278226,0.32317811,91391.0,91390.0,0.00029312]
[1764711278403,0.33975588,91391.0,91390.0,0.00029312]
[1764711278626,0.41524588,91391.0,91390.0,0.00029312]
[1764711280011,0.43252588,91391.0,91390.0,0.00029312]
[1764711280204,0.81804887,91391.0,91390.0,0.00029312]
[1764711281842,0.82004887,91391.0,91390.0,0.00029312]
[1764711282320,0.82104887,91391.0,91390.0,0.00029312]
[1764711286814,0.79916068,91391.0,91390.0,0.00029312]
[1764711287045,0.82104887,91391.0,91390.0,0.00029312]
[1764711287355,0.8200221,91391.0,91390.0,0.00029312]
[1764711291330,0.81813713,91391.0,91390.0,0.00029312]
[1764711292204,0.47785713,91391.0,91390.0,0.00029312]
[1764711292412,0.43261414,91391.0,91390.0,0.00029312]
[1764711293491,0.42961414,91391.0,91390.0,0.00029312]
[1764711296622,0.49213713,91391.0,91390.0,0.00029312]
[1764711298516,0.73613713,91391.0,91390.0,0.00029312]
[1764711300954,0.65733414,91391.0,91390.0,0.00029312]
[1764711302135,0.44140596,91391.0,91390.0,0.00029312]
[1764711302540,0.44040596,91391.0,91390.0,0.00029312]
[1764711302736,0.65924588,91391.0,91390.0,0.00029312]
[1764711304918,0.00011542,91391.0,91390.0,0.21913544]
[1764711305124,0.08806542,91391.0,91390.0,0.00029312]
[1764711305352,0.10995361,91391.0,91390.0,0.00029312]
[1764711305553,0.06033361,91391.0,91390.0,0.21913544]
[1764711305834,0.18544361,91391.0,91390.0,0.00029312]
[1764711305991,0.40428353,91391.0,91390.0,0.00029312]
[1764711306599,0.40428353,91391.0,91390.0,0.00129312]
[1764711306905,0.18544361,91391.0,91390.0,0.22013544]
[1764711307224,0.00011542,91391.0,91390.0,0.22013544]
[1764711309242,0.00011542,91391.0,91390.0,0.00129312]
[1764711309927,0.00011542,91391.0,91390.0,0.22013544]
[1764711310178,0.00011542,91391.0,91390.0,0.00129312]
[1764711310392,0.35716353,91391.0,91390.0,0.00129312]
[1764711310539,0.13832361,91391.0,91390.0,0.00129312]
[1764711310745,0.37911204,91391.0,91390.0,0.00129312]
[1764711311067,0.28675353,91391.0,91390.0,0.00129312]
[1764711312811,0.06791361,91391.0,91390.0,0.00129312]
[1764711313016,0.08986212,91391.0,91390.0,0.00129312]
[1764711313248,0.30870204,91391.0,91390.0,0.00129312]
[1764711313442,0.37362588,91391.0,91390.0,0.00129312]
[1764711313582,0.02188819,91371.0,91370.0,0.0004]
[1764711313794,0.17204819,91371.0,91370.0,0.0004]
[1764711314232,0.17204819,91371.0,91370.0,0.21929022]
[1764711314613,0.17204819,91371.0,91370.0,0.0004]
[1764711314817,0.39093602,91371.0,91370.0,0.0004]
[1764711315248,0.17204819,91371.0,91370.0,0.0004]
[1764711315624,0.39093602,91371.0,91370.0,0.0034]
[1764711315825,0.39093602,91371.0,91370.0,0.0044]
[1764711316122,0.17204819,91371.0,91370.0,0.0044]
[1764711316324,0.17204819,91371.0,91370.0,0.22329022]
[1764711317511,0.15016,91371.0,91370.0,0.0044]
[1764711317745,0.39093602,91371.0,91370.0,0.0044]
[1764711317973,0.36904783,91371.0,91370.0,0.0044]
[1764711318320,0.39093602,91371.0,91370.0,0.0044]
[1764711318724,0.39093602,91371.0,91370.0,0.0034]
[1764711318929,0.39093602,91371.0,91370.0,0.0004]
[1764711319475,0.03384,91371.0,91370.0,0.0004]
[1764711319652,0.07975,91371.0,91370.0,0.21929022]
[1764711319957,0.07975,91371.0,91370.0,0.0004]
[1764711319958,0.17204819,91371.0,91370.0,0.0004]
[1764711320173,0.39093602,91371.0,91370.0,0.0004]
[1764711320407,0.17204819,91371.0,91370.0,0.0014]
[1764711320578,0.39093602,91371.0,91370.0,0.0014]
[1764711321272,0.10163819,91371.0,91370.0,0.22029022]
[1764711321836,0.17204819,91371.0,91370.0,0.22029022]
[1764711322051,0.17204819,91371.0,91370.0,0.0014]
[1764711322946,0.39093602,91371.0,91370.0,0.0014]
[1764711323143,0.03384,91371.0,91370.0,0.22029022]
[1764711323368,0.03384,91371.0,91370.0,0.0014]
[1764711323551,0.03384,91371.0,91370.0,0.22029022]
[1764711324349,0.03384,91376.0,91375.0,0.21887824]
[1764711328187,0.07975,91376.0,91375.0,0.21887824]
[1764711330017,0.15016,91376.0,91370.0,0.0004]
[1764711330391,0.04591,91371.0,91370.0,0.0004]
[1764711330691,0.06785851,91371.0,91370.0,0.0004]
[1764711330998,0.35715634,91371.0,91370.0,0.0004]
[1764711331201,0.33520783,91371.0,91370.0,0.0004]
[1764711331586,0.35709602,91371.0,91370.0,0.0004]
[1764711331790,0.35709602,91371.0,91370.0,0.0014]
[1764711331791,0.41961901,91371.0,91370.0,0.0014]
[1764711332451,0.15548819,91371.0,91370.0,0.0014]
[1764711332658,0.13820819,91371.0,91370.0,0.0004]
[1764711332789,0.11632,91371.0,91370.0,0.0004]
[1764711333000,0.11832,91371.0,91370.0,0.0004]
[1764711333407,0.11832,91371.0,91370.0,0.21929022]
[1764711333616,0.04591,91371.0,91370.0,0.0004]
[1764711334018,0.11632,91371.0,91370.0,0.0004]
[1764711334220,0.33520783,91371.0,91370.0,0.0004]
[1764711335028,0.35709602,91371.0,91370.0,0.0004]
[1764711342577,0.13820819,91371.0,91370.0,0.0004]
[1764711342784,0.13820819,91371.0,91370.0,0.21929022]
[1764711343140,0.03384,91376.0,91374.0,0.21888007]
[1764711343351,0.03384,91376.0,91374.0,0.21888045]
[1764711343552,0.10544,91375.0,91374.0,0.21888064]
[1764711343755,0.10544,91375.0,91373.0,0.22982617]
[1764711344074,0.03384,91376.0,91375.0,0.21887824]
[1764711344623,0.07681,91376.0,91375.0,0.21887824]
[1764711344986,0.13928,91376.0,91375.0,0.21887824]
[1764711345165,0.14028,91376.0,91375.0,0.21887824]
[1764711345373,0.13928,91376.0,91375.0,0.21887824]
[1764711345777,0.14028,91376.0,91373.0,0.22982691]
[1764711345972,0.04297,91374.0,91373.0,0.22982691]
[1764711346481,0.10544,91374.0,91373.0,0.22982691]
[1764711348370,0.10644,91374.0,91373.0,0.22982691]
[1764711353930,0.11738403,91374.0,91370.0,0.0004]
[1764711354127,0.001,91374.0,91373.0,0.21888303]
[1764711354491,0.04397,91374.0,91373.0,0.21888303]
[1764711354695,0.10544,91374.0,91373.0,0.21888303]
[1764711354895,0.10644,91374.0,91373.0,0.21888303]
[1764711355292,0.03384,91376.0,91375.0,0.21887824]
[1764711357950,0.07681,91376.0,91375.0,0.21887824]
[1764711358150,0.13928,91376.0,91375.0,0.21887824]
[1764711363663,0.02188819,91375.0,91374.0,0.21888003]
[1764711363856,0.02188819,91374.0,91371.0,0.01094439]
[1764711364097,0.03343,91372.0,91371.0,0.22983034]
[1764711365359,0.03343,91372.0,91371.0,0.23083034]
[1764711372030,0.03204937,91372.0,91371.0,0.23083034]
[1764711373799,0.03343,91386.0,91381.0,0.01094319]
[1764711374027,0.0327,91390.0,91387.0,0.01094247]
[1764711374223,0.0327,91397.0,91390.0,0.21884232]
[1764711374684,0.0327,91401.0,91390.0,0.21884232]
[1764711375143,0.01728,91414.0,91390.0,0.21884232]
[1764711375304,0.01093852,91420.0,91390.0,0.21884232]
[1764711375305,0.01646235,91413.0,91390.0,0.21884232]
[1764711375505,0.01646235,91413.0,91390.0,0.21984232]
[1764711376046,0.02194851,91412.0,91390.0,0.21984232]
[1764711376247,0.01094032,91405.0,91390.0,0.21984232]
[1764711376492,0.21880234,91407.0,91390.0,0.21984232]
[1764711376632,0.06324,91403.0,91390.0,0.21984232]
[1764711376833,0.02194851,91402.0,91390.0,0.23912232]
[1764711377056,0.01094055,91403.0,91390.0,0.23912232]
[1764711377377,0.02194851,91402.0,91390.0,0.23712232]
[1764711377703,0.02194851,91404.0,91390.0,0.23712232]
[1764711378020,0.02194851,91404.0,91390.0,0.23912232]
[1764711378427,0.02194851,91404.0,91390.0,0.24012232]
[1764711378846,0.02194851,91404.0,91390.0,0.23912232]
[1764711379245,0.02194851,91404.0,91390.0,0.24012232]
[1764711379657,0.09594,91417.0,91390.0,0.24012232]
[1764711379854,0.09594,91417.0,91390.0,0.56312232]
[1764711379855,0.02194851,91414.0,91390.0,0.56312232]
[1764711380878,0.02194851,91414.0,91390.0,0.96312232]
[1764711381485,0.02194851,91416.0,91390.0,0.96312232]
[1764711381908,0.0327,91412.0,91390.0,0.96312232]
[1764711382107,0.02194851,91411.0,91390.0,0.96312232]
[1764711385324,0.02194851,91416.0,91390.0,0.96312232]
[1764711388055,0.0327,91411.0,91390.0,0.96312232]
[1764711388350,0.09594,91405.0,91390.0,0.64012232]
[1764711388547,0.02194851,91404.0,91390.0,0.64012232]
[1764711388756,0.02194851,91404.0,91390.0,0.24012232]
[1764711390531,0.01094055,91403.0,91390.0,0.24012232]
[1764711390696,0.02194851,91404.0,91390.0,0.24012232]
[1764711393194,0.02194851,91410.0,91390.0,0.24012232]
[1764711393793,0.02194851,91410.0,91390.0,0.24380019]
[1764711395351,0.02194851,91410.0,91390.0,0.56680019]
[1764711395644,0.02194851,91416.0,91390.0,0.56680019]
[1764711396123,0.0327,91422.0,91390.0,0.56680019]
[1764711396855,0.0327,91422.0,91390.0,0.56280019]
[1764711397233,0.00211542,91391.0,91390.0,0.56280019]
[1764711398231,0.00211542,91391.0,91390.0,0.96280019]
[1764711399373,0.0327,91429.0,91425.0,0.22969556]
[1764711399495,0.02188819,91424.0,91423.0,0.01093816]
[1764711399705,0.02188819,91424.0,91423.0,0.22970094]
[1764711400106,0.01093828,91422.0,91414.0,0.01728]
[1764711400330,0.01093828,91422.0,91420.0,0.21877011]
[1764711400331,0.02194851,91422.0,91420.0,0.21877011]
[1764711400621,0.02194851,91422.0,91421.0,0.21876811]
[1764711400829,0.06138,91424.0,91423.0,0.21876333]
[1764711401293,0.09936,91424.0,91423.0,0.21876333]
[1764711401588,0.09936,91424.0,91418.0,0.21877489]
[1764711401788,0.02188819,91417.0,91416.0,0.21878008]
[1764711401952,0.05986819,91417.0,91416.0,0.21878008]
[1764711402150,0.12124819,91417.0,91416.0,0.21878008]
[1764711402570,0.05986819,91417.0,91416.0,0.21878008]
[1764711403149,0.12124819,91417.0,91412.0,0.01093948]
[1764711403373,0.05992851,91416.0,91415.0,0.21878247]
[1764711403708,0.03798,91416.0,91415.0,0.21878247]
[1764711406095,0.06317611,91425.0,91422.0,0.21876408]
[1764711406282,0.06138,91423.0,91422.0,0.21876408]
[1764711406457,0.09936,91423.0,91422.0,0.21876408]
[1764711406669,0.09936,91423.0,91422.0,0.00274075]
[1764711406865,0.09936,91423.0,91422.0,0.22150647]
[1764711407066,0.09936,91423.0,91422.0,0.00274075]
[1764711407508,0.09936,91423.0,91422.0,0.22150647]
[1764711408333,0.09936,91423.0,91422.0,0.22250647]
[1764711408530,0.03798,91423.0,91422.0,0.22250647]
[1764711408656,0.05223819,91425.0,91422.0,0.22250647]
[1764711408860,0.05223819,91425.0,91424.0,0.21876093]
[1764711409060,0.11361819,91425.0,91424.0,0.21876093]
[1764711409258,0.15159819,91425.0,91424.0,0.21876093]
[1764711411316,0.15159819,91425.0,91420.0,0.01093852]
[1764711411485,0.03798,91424.0,91419.0,0.22971109]
[1764711411682,0.09936,91424.0,91420.0,0.22970861]
[1764711411904,0.01093816,91423.0,91420.0,0.01093852]
[1764711412092,0.03798,91420.0,91418.0,0.21877473]
[1764711412705,0.02188819,91424.0,91423.0,0.21876333]
[1764711413121,0.03035,91425.0,91423.0,0.21876333]
[1764711413624,0.03281572,91429.0,91428.0,0.21875136]
[1764711414233,0.03281572,91429.0,91427.0,0.21875337]
[1764711414857,0.03281572,91429.0,91428.0,0.21875136]
[1764711415595,0.00011572,91429.0,91428.0,0.22131647]
[1764711416547,0.00011572,91429.0,91428.0,0.25416695]
[1764711418685,0.00011572,91429.0,91428.0,0.27144695]
[1764711420767,0.00011572,91429.0,91428.0,0.27444695]
[1764711421801,0.00011572,91429.0,91428.0,0.27544695]
[1764711421998,0.00011572,91429.0,91428.0,0.27444695]
[1764711422400,0.00011572,91429.0,91428.0,0.27544695]
[1764711422725,0.00011572,91429.0,91428.0,0.27244695]
[1764711423429,0.00011572,91429.0,91428.0,0.27444695]
[1764711434476,0.00011572,91429.0,91428.0,0.59744695]
[1764711434855,0.00011572,91429.0,91428.0,0.99744695]
[1764711435072,0.00011572,91429.0,91428.0,0.99544695]
[1764711435478,0.00011572,91429.0,91428.0,2.09835895]
[1764711435680,0.00011572,91429.0,91428.0,2.16088194]
[1764711436302,0.00011572,91429.0,91428.0,2.15988194]
[1764711436510,2.504e-05,91429.0,91428.0,2.15988194]
[1764711436721,0.00102504,91429.0,91428.0,2.15988194]
[1764711436945,0.05132819,91469.0,91467.0,0.21865809]
[1764711437394,0.01093242,91471.0,91462.0,0.0109335]
[1764711437597,0.02188819,91472.0,91469.0,0.01093266]
[1764711437897,0.02188819,91472.0,91470.0,0.21864887]
[1764711438048,0.03868,91471.0,91470.0,0.21864887]
[1764711438251,0.35244,91496.0,91489.0,0.21860551]
[1764711438616,0.02944,91496.0,91489.0,0.21860551]
[1764711438837,0.02944,91502.0,91489.0,0.25143564]
[1764711439066,0.02194851,91501.0,91489.0,0.25143564]
[1764711439304,0.02944,91504.0,91489.0,0.25143564]
[1764711439561,0.02944,91511.0,91489.0,0.57443564]
[1764711439745,0.02944,91511.0,91489.0,0.57543564]
[1764711439976,0.02194851,91510.0,91489.0,0.57443564]
[1764711440302,0.02944,91511.0,91489.0,0.57643564]
[1764711440527,0.02944,91511.0,91489.0,0.57743564]
[1764711440730,0.02194851,91510.0,91489.0,0.57743564]
[1764711441461,0.02194851,91510.0,91489.0,0.57543564]
[1764711441821,0.02194851,91510.0,91489.0,0.57843564]
[1764711442639,0.02194851,91510.0,91489.0,0.97843564]
[1764711443240,0.01092788,91509.0,91489.0,0.97843564]
[1764711443615,0.02944,91503.0,91489.0,0.97843564]
[1764711444151,0.02944,91503.0,91489.0,0.97743564]
[1764711444348,0.02944,91503.0,91489.0,0.57743564]
[1764711444547,0.02944,91503.0,91489.0,0.57443564]
[1764711445272,0.02944,91503.0,91489.0,0.57743564]
[1764711445493,0.02944,91503.0,91489.0,0.57843564]
[1764711446105,0.02944,91503.0,91489.0,0.59571564]
[1764711447686,0.00023374,91508.0,91489.0,0.59571564]
[1764711448139,0.02944,91503.0,91489.0,0.59571564]
[1764711453751,0.02944,91496.0,91489.0,0.03683013]
[1764711453972,0.11608819,91490.0,91489.0,0.02128]
[1764711454682,0.11608819,91490.0,91489.0,0.004]
[1764711454878,0.11608819,91490.0,91489.0,0.003]
[1764711455078,0.02188819,91482.0,91481.0,0.01728]
[1764711455302,0.08195819,91482.0,91481.0,0.01728]
[1764711456101,0.13549819,91482.0,91481.0,0.01828]
[1764711456529,0.08195819,91482.0,91481.0,0.01828]
[1764711456799,0.08195819,91482.0,91481.0,0.02028]
[1764711457249,0.04754819,91482.0,91481.0,0.02028]
[1764711458142,0.08326819,91482.0,91481.0,0.02028]
[1764711458501,0.06138,91482.0,91481.0,0.02028]
[1764711458879,0.11492,91482.0,91481.0,0.23890463]
[1764711459985,0.11492,91482.0,91481.0,0.02028]
[1764711460407,0.11492,91482.0,91481.0,0.23890463]
[1764711460615,0.06138,91482.0,91481.0,0.23890463]
[1764711461021,0.02566,91482.0,91481.0,0.23890463]
[1764711461912,0.02188819,91489.0,91488.0,0.21860743]
[1764711462921,0.04802819,91489.0,91488.0,0.21960743]
[1764711463488,0.13728819,91489.0,91488.0,0.21960743]
[1764711463692,0.08374819,91489.0,91488.0,0.21960743]
[1764711466082,0.02614,91489.0,91488.0,0.21960743]
[1764711466407,0.0002,91490.0,91489.0,0.21860551]
[1764711467515,0.0002,91490.0,91489.0,0.21960551]
[1764711468339,0.03592,91490.0,91489.0,0.21960551]
[1764711471769,0.08946,91490.0,91489.0,0.21960551]
[1764711472010,0.11134819,91490.0,91489.0,0.001]
[1764711472152,0.32995131,91490.0,91489.0,0.001]
[1764711475831,0.32995131,91490.0,91482.0,0.22955245]
[1764711475832,0.02188819,91483.0,91482.0,0.22955245]
[1764711476257,0.13728819,91483.0,91482.0,0.22955245]
[1764711476686,0.13728819,91483.0,91481.0,0.01093123]
[1764711476687,0.02188819,91480.0,91479.0,0.22956053]
[1764711476897,0.02188819,91479.0,91478.0,0.22956304]
[1764711477110,0.05760819,91479.0,91478.0,0.22956304]
[1764711477315,0.11114819,91479.0,91478.0,0.22956304]
[1764711477852,0.11114819,91479.0,91478.0,0.23056304]
[1764711479218,0.08926,91479.0,91478.0,0.23056304]
[1764711479536,0.03572,91479.0,91478.0,0.23056304]
[1764711481443,0.02614,91483.0,91482.0,0.21862224]
[1764711483080,0.02614,91483.0,91482.0,0.21962224]
[1764711484174,0.06186,91483.0,91482.0,0.21962224]
[1764711489627,0.06186,91483.0,91482.0,0.001]
[1764711489806,0.11044,91483.0,91482.0,0.001]
[1764711489999,0.32905985,91483.0,91482.0,0.001]
[1764711490991,0.35094804,91483.0,91482.0,0.001]
[1764711491359,0.32905985,91483.0,91482.0,0.001]
[1764711491534,0.02188819,91459.0,91456.0,0.01728]
[1764711491761,0.02188819,91459.0,91458.0,0.21867961]
[1764711491960,0.02188819,91459.0,91456.0,0.01766619]
[1764711491961,0.05686,91457.0,91456.0,0.00038619]
[1764711492281,0.10544,91457.0,91456.0,0.00038619]
[1764711492529,0.10544,91457.0,91456.0,0.21907058]
[1764711493183,0.10544,91457.0,91456.0,0.00038619]
[1764711493424,0.10544,91457.0,91456.0,0.00138619]
[1764711496203,0.02188819,91459.0,91456.0,0.00138619]
[1764711496204,0.02422,91469.0,91463.0,0.01093338]
[1764711496406,0.02422,91469.0,91467.0,0.21865618]
[1764711499013,0.02422,91476.0,91467.0,0.21865618]
[1764711499014,0.02422,91476.0,91475.0,0.21863897]
[1764711499210,0.02422,91476.0,91474.0,0.21864097]
[1764711499432,0.08122,91475.0,91473.0,0.22957541]
[1764711499630,0.04858,91475.0,91474.0,0.21864029]
[1764711499805,0.02422,91476.0,91474.0,0.21864029]
[1764711500010,0.03264,91475.0,91474.0,0.21864029]
[1764711500343,0.08122,91475.0,91474.0,0.21864029]
[1764711501084,0.08122,91475.0,91473.0,0.2295751]
[1764711501273,0.08122,91474.0,91473.0,0.2295751]
[1764711502348,0.08222,91474.0,91473.0,0.2295751]
[1764711502984,0.08222,91474.0,91473.0,0.01093218]
[1764711503162,0.08222,91474.0,91468.0,0.21865516]
[1764711503474,0.05686,91469.0,91468.0,0.21865552]
[1764711504300,0.24285439,91477.0,91474.0,0.21863909]
[1764711504473,0.24285439,91477.0,91473.0,0.21863909]
[1764711504679,0.24285439,91477.0,91473.0,0.22957127]
[1764711504680,0.21863762,91476.0,91473.0,0.22957127]
[1764711504932,0.22956944,91476.0,91473.0,0.22957127]
[1764711505267,0.02422,91475.0,91473.0,0.22957127]
[1764711506562,0.02422,91475.0,91474.0,0.21864136]
[1764711507481,0.10544,91475.0,91473.0,0.22957582]
[1764711508166,0.10644,91475.0,91474.0,0.21864136]
[1764711508456,0.05686,91475.0,91474.0,0.21864136]
[1764711508860,0.05786,91475.0,91474.0,0.21864136]
[1764711509065,0.05686,91475.0,91474.0,0.21864136]
[1764711509267,0.04610819,91477.0,91476.0,0.21863658]
[1764711509827,0.22954215,91487.0,91481.0,0.22955551]
[1764711509828,0.02188819,91482.0,91481.0,0.22955551]
[1764711510046,0.02188819,91482.0,91481.0,0.01093123]
[1764711510250,0.02188819,91482.0,91481.0,0.22955586]
[1764711510617,0.02188819,91480.0,91479.0,0.22956086]
[1764711510830,0.02422,91489.0,91480.0,0.01093135]
[1764711511058,0.02188819,91483.0,91482.0,0.01093111]
[1764711511259,0.02188819,91481.0,91480.0,0.01093135]
[1764711511458,0.02188819,91481.0,91480.0,0.22955837]
[1764711513541,0.22954234,91487.0,91484.0,0.21861719]
[1764711513542,0.01093051,91487.0,91484.0,0.21861719]
[1764711513744,0.26718841,91488.0,91485.0,0.22954382]
[1764711513745,0.04858,91488.0,91485.0,0.22954382]
[1764711513989,0.04858,91488.0,91487.0,0.21861029]
[1764711514217,0.04858,91488.0,91485.0,0.22954578]
[1764711514426,0.22954293,91487.0,91484.0,0.01093087]
[1764711514654,0.21861462,91486.0,91483.0,0.22955031]
[1764711514868,0.22954293,91487.0,91484.0,0.01131706]
[1764711515077,0.22954293,91487.0,91484.0,0.00038619]
[1764711515284,0.27361326,91485.0,91484.0,0.00038619]
[1764711515714,0.32301326,91485.0,91484.0,0.00038619]
[1764711516189,0.32354326,91485.0,91484.0,0.00038619]
[1764711516385,0.05499819,91485.0,91484.0,0.00038619]
[1764711517380,0.27361326,91485.0,91484.0,0.00038619]
[1764711518014,0.32354326,91485.0,91484.0,0.00038619]
[1764711518246,0.27361326,91485.0,91484.0,0.00038619]
[1764711519228,0.05499819,91485.0,91484.0,0.00038619]
[1764711519435,0.10492819,91485.0,91484.0,0.00038619]
[1764711519680,0.32354326,91485.0,91484.0,0.00038619]
[1764711522561,0.10492819,91485.0,91484.0,0.00038619]
[1764711523690,0.32354326,91485.0,91484.0,0.00038619]
[1764711524118,0.10492819,91485.0,91484.0,0.00038619]
[1764711524323,0.10492819,91485.0,91484.0,0.21900365]
[1764711524324,0.05499819,91485.0,91484.0,0.21900365]
[1764711525358,0.05499819,91485.0,91484.0,0.00038619]
[1764711525983,0.05499819,91485.0,91484.0,0.21900365]
[1764711526947,0.02188819,91485.0,91484.0,0.21900365]
[1764711527778,0.02188819,91485.0,91484.0,0.00038619]
[1764711527995,0.02188819,91485.0,91484.0,0.21900365]
[1764711528198,0.02188819,91485.0,91484.0,0.00038619]
[1764711528815,0.02188819,91485.0,91484.0,0.21900365]
[1764711529350,0.02188819,91485.0,91484.0,0.00038619]
[1764711529748,0.02188819,91485.0,91484.0,0.21900365]
[1764711531412,0.02188819,91485.0,91484.0,0.00038619]
[1764711531630,0.02188819,91485.0,91484.0,0.21900365]
[1764711531854,0.02188819,91485.0,91484.0,0.00038619]
[1764711532526,0.32345326,91485.0,91484.0,0.00038619]
[1764711533207,0.10483819,91485.0,91484.0,0.00038619]
[1764711533426,0.10483819,91485.0,91484.0,0.21900365]
[1764711533656,0.10483819,91485.0,91484.0,0.00038619]
[1764711533874,0.32345326,91485.0,91484.0,0.00038619]
[1764711536201,0.30156507,91485.0,91484.0,0.00038619]
[1764711536406,0.32345326,91485.0,91484.0,0.00038619]
[1764711537549,0.30256507,91485.0,91484.0,0.00038619]
[1764711539173,0.30156507,91485.0,91484.0,0.00038619]
[1764711539585,0.30256507,91485.0,91484.0,0.00038619]
[1764711539790,0.32445326,91485.0,91484.0,0.00038619]
[1764711542783,0.32345326,91485.0,91484.0,0.00038619]
[1764711543221,0.32545326,91485.0,91484.0,0.00038619]
[1764711560001,0.10683819,91485.0,91484.0,0.00038619]
[1764711560201,0.02388819,91485.0,91484.0,0.21900365]
[1764711560401,0.002,91485.0,91484.0,0.21900365]
[1764711560542,0.002,91485.0,91484.0,0.00038619]